[Event "Early-Titled-Tuesday-Blitz-April-02-2024"]
[Site "Chess.com"]
[Date "2024.04.02"]
[Round "4"]
[White "Zhigalko_Sergei"]
[Black "DenLaz"]
[Result "1/2-1/2"]
[WhiteElo "2884"]
[BlackElo "3110"]
[TimeControl "180+1"]
[EndTime "8:37:03 PDT"]
[Termination "Game drawn by agreement"]

1. e4 {[%clk 0:03:00.4]} 1... e5 {[%clk 0:03:00.3]} 2. Nf3 {[%clk 0:03:00.2]}
2... Nc6 {[%clk 0:03:00.9]} 3. Bc4 {[%clk 0:02:58.5]} 3... Bc5 {[%clk
0:03:00.4]} 4. d3 {[%clk 0:02:59]} 4... Nf6 {[%clk 0:02:59.8]} 5. O-O {[%clk
0:02:59.6]} 5... d6 {[%clk 0:02:59.4]} 6. Nbd2 {[%clk 0:02:59.8]} 6... O-O
{[%clk 0:02:58.3]} 7. c3 {[%clk 0:03:00.4]} 7... a6 {[%clk 0:02:58.6]} 8. Bb3
{[%clk 0:03:00]} 8... h6 {[%clk 0:02:57.3]} 9. h3 {[%clk 0:02:51.9]} 9... Be6
{[%clk 0:02:57.4]} 10. Re1 {[%clk 0:02:50.6]} 10... Bxb3 {[%clk 0:02:55.2]} 11.
axb3 {[%clk 0:02:40.5]} 11... a5 {[%clk 0:02:54.7]} 12. Nc4 {[%clk 0:02:38]}
12... Re8 {[%clk 0:02:54.1]} 13. Be3 {[%clk 0:02:37.1]} 13... Bxe3 {[%clk
0:02:52.4]} 14. Nxe3 {[%clk 0:02:34.6]} 14... d5 {[%clk 0:02:50.5]} 15. exd5
{[%clk 0:02:27.8]} 15... Nxd5 {[%clk 0:02:50.5]} 16. Nc4 {[%clk 0:02:28.3]}
16... Qf6 {[%clk 0:02:49.7]} 17. Qe2 {[%clk 0:02:22.6]} 17... Qf5 {[%clk
0:02:30.2]} 18. Ne3 {[%clk 0:01:32.6]} 18... Nxe3 {[%clk 0:02:28]} 19. Qxe3
{[%clk 0:01:33.5]} 19... Qe6 {[%clk 0:02:18.1]} 20. b4 {[%clk 0:01:24.6]} 20...
axb4 {[%clk 0:02:09.6]} 21. Rxa8 {[%clk 0:01:25.5]} 21... Rxa8 {[%clk
0:02:09.1]} 22. Nxe5 {[%clk 0:01:25.6]} 22... Nxe5 {[%clk 0:01:40.6]} 23. Qxe5
{[%clk 0:01:25.6]} 23... Qxe5 {[%clk 0:01:40.9]} 24. Rxe5 {[%clk 0:01:26.5]}
24... bxc3 {[%clk 0:01:41.6]} 25. bxc3 {[%clk 0:01:27.3]} 25... Ra1+ {[%clk
0:01:42.1]} 26. Kh2 {[%clk 0:01:27.1]} 26... Ra3 {[%clk 0:01:43]} 27. Re8+
{[%clk 0:01:15.3]} 27... Kh7 {[%clk 0:01:42.2]} 28. c4 {[%clk 0:01:10.9]} 28...
Rxd3 {[%clk 0:01:16.9]} 29. Re7 {[%clk 0:01:11.1]} 29... c6 {[%clk 0:01:16.9]}
30. Rxb7 {[%clk 0:01:03.6]} 30... Rd4 {[%clk 0:01:13.5]} 31. Rxf7 {[%clk
0:01:02.7]} 31... Rxc4 {[%clk 0:01:14.1]} 32. Rc7 {[%clk 0:01:02.2]} 1/2-1/2

[Event "Early-Titled-Tuesday-Blitz-April-02-2024"]
[Site "Chess.com"]
[Date "2024.04.02"]
[Round "4"]
[White "SharapovEvgeny"]
[Black "FREDERICKtheMATE"]
[Result "1/2-1/2"]
[WhiteElo "2557"]
[BlackElo "2680"]
[TimeControl "180+1"]
[EndTime "8:37:03 PDT"]
[Termination "Game drawn - insufficient material"]

1. b3 {[%clk 0:02:59.8]} 1... c6 {[%clk 0:03:00.9]} 2. Bb2 {[%clk 0:02:59.8]}
2... d5 {[%clk 0:03:01.8]} 3. f4 {[%clk 0:03:00.2]} 3... Nf6 {[%clk 0:03:01.8]}
4. Nf3 {[%clk 0:03:00.6]} 4... Bf5 {[%clk 0:03:01.6]} 5. e3 {[%clk 0:03:00.9]}
5... e6 {[%clk 0:03:01.8]} 6. Be2 {[%clk 0:03:01.2]} 6... Nbd7 {[%clk
0:03:01.8]} 7. O-O {[%clk 0:03:01.4]} 7... h6 {[%clk 0:03:00.1]} 8. d3 {[%clk
0:03:01.3]} 8... Be7 {[%clk 0:02:58.5]} 9. Ne5 {[%clk 0:03:01.3]} 9... Nxe5
{[%clk 0:02:50.8]} 10. fxe5 {[%clk 0:03:01.2]} 10... Nd7 {[%clk 0:02:50.5]} 11.
Nd2 {[%clk 0:03:01]} 11... O-O {[%clk 0:02:48.7]} 12. Kh1 {[%clk 0:02:58.2]}
12... Bh7 {[%clk 0:02:44.6]} 13. Nf3 {[%clk 0:02:55.6]} 13... c5 {[%clk
0:02:41.4]} 14. Qe1 {[%clk 0:02:54.9]} 14... f5 {[%clk 0:02:38.7]} 15. exf6
{[%clk 0:02:53.5]} 15... Bxf6 {[%clk 0:02:38.6]} 16. Bxf6 {[%clk 0:02:47]} 16...
Rxf6 {[%clk 0:02:38.5]} 17. Qg3 {[%clk 0:02:44.1]} 17... Qb8 {[%clk 0:02:38.6]}
18. Qxb8+ {[%clk 0:02:38.7]} 18... Rxb8 {[%clk 0:02:39.5]} 19. Nd2 {[%clk
0:02:36.1]} 19... Rbf8 {[%clk 0:02:37.2]} 20. Rxf6 {[%clk 0:02:35.7]} 20... Rxf6
{[%clk 0:02:38.1]} 21. Rf1 {[%clk 0:02:35.5]} 21... Kf7 {[%clk 0:02:33.3]} 22.
Rxf6+ {[%clk 0:02:34.2]} 22... Nxf6 {[%clk 0:02:34.2]} 23. Kg1 {[%clk
0:02:33.7]} 23... Ke7 {[%clk 0:02:33.3]} 24. Kf2 {[%clk 0:02:33.6]} 24... Kd6
{[%clk 0:02:33.5]} 25. c3 {[%clk 0:02:26.8]} 25... g5 {[%clk 0:02:29.9]} 26. d4
{[%clk 0:02:25.2]} 26... e5 {[%clk 0:02:29.7]} 27. dxe5+ {[%clk 0:02:15.6]}
27... Kxe5 {[%clk 0:02:28.7]} 28. g3 {[%clk 0:02:15.6]} 28... a5 {[%clk
0:02:24]} 29. Nf3+ {[%clk 0:02:07.3]} 29... Kd6 {[%clk 0:02:22.8]} 30. Nd2
{[%clk 0:02:07]} 30... b6 {[%clk 0:02:19.1]} 31. Bf3 {[%clk 0:02:01.8]} 31...
Ke5 {[%clk 0:02:18.2]} 32. Be2 {[%clk 0:02:01.5]} 32... Ne4+ {[%clk 0:02:06.2]}
33. Nxe4 {[%clk 0:02:01.3]} 33... Bxe4 {[%clk 0:02:07.1]} 34. a3 {[%clk
0:01:57.4]} 34... d4 {[%clk 0:02:06.8]} 35. cxd4+ {[%clk 0:01:49.8]} 35... cxd4
{[%clk 0:02:07.7]} 36. b4 {[%clk 0:01:39.1]} 36... axb4 {[%clk 0:01:58.4]} 37.
axb4 {[%clk 0:01:38.8]} 37... Bc2 {[%clk 0:01:58.9]} 38. Bf3 {[%clk 0:01:35]}
38... Bd3 {[%clk 0:01:55]} 39. h4 {[%clk 0:01:25]} 39... gxh4 {[%clk 0:01:45.4]}
40. gxh4 {[%clk 0:01:24.8]} 40... Bc4 {[%clk 0:01:43.1]} 41. exd4+ {[%clk
0:01:17.8]} 41... Kxd4 {[%clk 0:01:42.8]} 42. Kg3 {[%clk 0:01:18.5]} 42... Kc3
{[%clk 0:01:42.2]} 43. Kg4 {[%clk 0:01:18.3]} 43... Kxb4 {[%clk 0:01:38.3]} 44.
Kh5 {[%clk 0:01:17.9]} 44... Kc5 {[%clk 0:01:36.7]} 45. Kxh6 {[%clk 0:01:18.1]}
45... b5 {[%clk 0:01:37]} 46. Bd1 {[%clk 0:01:17.7]} 46... b4 {[%clk 0:01:37.4]}
47. Kg7 {[%clk 0:01:12]} 47... Kd4 {[%clk 0:01:34.2]} 48. h5 {[%clk 0:01:11.8]}
48... Bd3 {[%clk 0:01:34.3]} 49. h6 {[%clk 0:01:11.5]} 49... Kc3 {[%clk
0:01:34.4]} 50. h7 {[%clk 0:01:11]} 50... Bxh7 {[%clk 0:01:29.8]} 51. Kxh7
{[%clk 0:01:11.2]} 51... b3 {[%clk 0:01:30.7]} 52. Bxb3 {[%clk 0:01:11]} 1/2-1/2

[Event "Early-Titled-Tuesday-Blitz-April-02-2024"]
[Site "Chess.com"]
[Date "2024.04.02"]
[Round "4"]
[White "HajiyevKanan"]
[Black "sorch29"]
[Result "1-0"]
[WhiteElo "2598"]
[BlackElo "2428"]
[TimeControl "180+1"]
[EndTime "8:37:05 PDT"]
[Termination "HajiyevKanan won by resignation"]

1. d4 {[%clk 0:03:00.9]} 1... d5 {[%clk 0:02:59.5]} 2. c4 {[%clk 0:02:54.2]}
2... e6 {[%clk 0:02:59.7]} 3. cxd5 {[%clk 0:02:55.1]} 3... exd5 {[%clk
0:02:59.7]} 4. Nc3 {[%clk 0:02:56]} 4... c6 {[%clk 0:02:59.8]} 5. Qc2 {[%clk
0:02:56.3]} 5... Nf6 {[%clk 0:02:54.1]} 6. Nf3 {[%clk 0:02:54.6]} 6... g6 {[%clk
0:02:44]} 7. Bg5 {[%clk 0:02:53.2]} 7... Be7 {[%clk 0:02:43.5]} 8. e3 {[%clk
0:02:53.4]} 8... Bf5 {[%clk 0:02:43.3]} 9. Bd3 {[%clk 0:02:54.1]} 9... Bxd3
{[%clk 0:02:44]} 10. Qxd3 {[%clk 0:02:55]} 10... O-O {[%clk 0:02:44.2]} 11. O-O
{[%clk 0:02:55]} 11... Nbd7 {[%clk 0:02:40.3]} 12. Rab1 {[%clk 0:02:54.7]} 12...
a5 {[%clk 0:02:37.8]} 13. Qc2 {[%clk 0:02:54.7]} 13... Re8 {[%clk 0:02:35.6]}
14. Rfc1 {[%clk 0:02:54.4]} 14... Kg7 {[%clk 0:02:00.6]} 15. h3 {[%clk
0:02:53.1]} 15... Bd6 {[%clk 0:01:55.3]} 16. Na4 {[%clk 0:02:46.4]} 16... h6
{[%clk 0:01:51.3]} 17. Bxf6+ {[%clk 0:02:33.7]} 17... Qxf6 {[%clk 0:01:50.2]}
18. Nc5 {[%clk 0:02:26.2]} 18... Bxc5 {[%clk 0:01:30.9]} 19. dxc5 {[%clk
0:02:27.1]} 19... Re4 {[%clk 0:01:19]} 20. Qc3 {[%clk 0:02:20.3]} 20... Rb4
{[%clk 0:01:08.4]} 21. a3 {[%clk 0:02:13.9]} 21... Re4 {[%clk 0:00:27.4]} 22. b4
{[%clk 0:02:07]} 22... axb4 {[%clk 0:00:26.6]} 23. axb4 {[%clk 0:02:06.1]} 23...
Qxc3 {[%clk 0:00:25.3]} 24. Rxc3 {[%clk 0:02:07]} 24... Ra4 {[%clk 0:00:17.4]}
25. Rcb3 {[%clk 0:02:06]} 25... Rc4 {[%clk 0:00:15]} 26. R3b2 {[%clk 0:02:04.1]}
26... Nb8 {[%clk 0:00:08.8]} 27. Ne5 {[%clk 0:02:03.1]} 27... Rc3 {[%clk
0:00:05.7]} 28. Kf1 {[%clk 0:02:02.2]} 28... Na6 {[%clk 0:00:05.6]} 29. Ke2
{[%clk 0:01:59.6]} 29... f6 {[%clk 0:00:05.4]} 30. Nd7 {[%clk 0:01:56.8]} 30...
Rc4 {[%clk 0:00:04.9]} 31. Nb6 {[%clk 0:01:57.1]} 31... Raxb4 {[%clk 0:00:02.7]}
32. Nxc4 {[%clk 0:01:57]} 32... Rxc4 {[%clk 0:00:02.7]} 33. Rxb7+ {[%clk
0:01:56.9]} 33... Kf8 {[%clk 0:00:03.6]} 1-0

[Event "Early-Titled-Tuesday-Blitz-April-02-2024"]
[Site "Chess.com"]
[Date "2024.04.02"]
[Round "4"]
[White "Andrey_Klymchuk"]
[Black "Alexander_Donchenko"]
[Result "0-1"]
[WhiteElo "2722"]
[BlackElo "2896"]
[TimeControl "180+1"]
[EndTime "8:37:07 PDT"]
[Termination "Alexander_Donchenko won by resignation"]

1. e4 {[%clk 0:03:00.9]} 1... c6 {[%clk 0:02:59.6]} 2. d4 {[%clk 0:03:00.4]}
2... d5 {[%clk 0:03:00.5]} 3. e5 {[%clk 0:03:00.6]} 3... c5 {[%clk 0:03:00.4]}
4. dxc5 {[%clk 0:03:00.4]} 4... e6 {[%clk 0:03:00.9]} 5. Qg4 {[%clk 0:02:59.9]}
5... h5 {[%clk 0:03:00]} 6. Qf4 {[%clk 0:02:59.6]} 6... Bxc5 {[%clk 0:02:58.1]}
7. Nf3 {[%clk 0:02:57.6]} 7... Nc6 {[%clk 0:02:57.2]} 8. Bd3 {[%clk 0:02:56.6]}
8... Nh6 {[%clk 0:02:54.6]} 9. O-O {[%clk 0:02:54.7]} 9... Bd7 {[%clk
0:02:52.8]} 10. a3 {[%clk 0:02:53.9]} 10... Be7 {[%clk 0:02:48.7]} 11. b4 {[%clk
0:02:50.1]} 11... a6 {[%clk 0:02:47.6]} 12. Re1 {[%clk 0:02:44.3]} 12... Rc8
{[%clk 0:02:46.8]} 13. h4 {[%clk 0:02:41.2]} 13... Ng4 {[%clk 0:02:41.5]} 14. g3
{[%clk 0:02:28.9]} 14... O-O {[%clk 0:02:28]} 15. Bb2 {[%clk 0:01:18.8]} 15...
f6 {[%clk 0:02:19.6]} 16. exf6 {[%clk 0:01:18.9]} 16... Bxf6 {[%clk 0:02:20.2]}
17. Bxf6 {[%clk 0:01:18.9]} 17... Rxf6 {[%clk 0:02:17.4]} 18. Qg5 {[%clk
0:01:18.9]} 18... Rxf3 {[%clk 0:02:10.4]} 19. Qxh5 {[%clk 0:01:18.6]} 19... e5
{[%clk 0:01:59.7]} 20. Nd2 {[%clk 0:00:47.6]} 20... Rxf2 {[%clk 0:01:41.7]} 21.
Qh7+ {[%clk 0:00:29.1]} 21... Kf8 {[%clk 0:01:40.5]} 22. Rf1 {[%clk 0:00:18.3]}
22... Qf6 {[%clk 0:01:38.5]} 23. Kh1 {[%clk 0:00:17.5]} 23... e4 {[%clk
0:01:33.5]} 24. Be2 {[%clk 0:00:17.6]} 24... Bf5 {[%clk 0:01:25.1]} 25. Qh5
{[%clk 0:00:17.4]} 25... Rh2+ {[%clk 0:01:22.7]} 26. Kg1 {[%clk 0:00:16.8]}
26... Qd4+ {[%clk 0:01:23.6]} 0-1

[Event "Early-Titled-Tuesday-Blitz-April-02-2024"]
[Site "Chess.com"]
[Date "2024.04.02"]
[Round "4"]
[White "AsaHoffmann"]
[Black "HATilay"]
[Result "0-1"]
[WhiteElo "2396"]
[BlackElo "2609"]
[TimeControl "180+1"]
[EndTime "8:37:10 PDT"]
[Termination "HATilay won by resignation"]

1. d4 {[%clk 0:03:00.9]} 1... Nf6 {[%clk 0:03:00]} 2. Bg5 {[%clk 0:02:59.6]}
2... d5 {[%clk 0:02:59.2]} 3. Nd2 {[%clk 0:02:56.6]} 3... c5 {[%clk 0:02:58.3]}
4. e3 {[%clk 0:02:56.3]} 4... Nc6 {[%clk 0:02:58.3]} 5. c3 {[%clk 0:02:56.3]}
5... Bf5 {[%clk 0:02:58.6]} 6. f4 {[%clk 0:02:55.3]} 6... e6 {[%clk 0:02:58]} 7.
Ngf3 {[%clk 0:02:54.9]} 7... Be7 {[%clk 0:02:54.1]} 8. Be2 {[%clk 0:02:50.4]}
8... O-O {[%clk 0:02:54.1]} 9. O-O {[%clk 0:02:50.1]} 9... Qb6 {[%clk
0:02:54.8]} 10. b3 {[%clk 0:02:44.5]} 10... Ng4 {[%clk 0:02:51.9]} 11. Bxe7
{[%clk 0:02:35.9]} 11... Nxe3 {[%clk 0:02:51.8]} 12. Bxf8 {[%clk 0:02:33.6]}
12... Nxd1 {[%clk 0:02:51.1]} 13. Bxc5 {[%clk 0:02:33.2]} 13... Qa5 {[%clk
0:02:17.3]} 14. b4 {[%clk 0:02:25.5]} 14... Qc7 {[%clk 0:02:16.5]} 15. Raxd1
{[%clk 0:02:24]} 15... b6 {[%clk 0:02:16.8]} 16. b5 {[%clk 0:02:21.8]} 16...
bxc5 {[%clk 0:02:16.9]} 17. bxc6 {[%clk 0:02:20.6]} 17... Qxc6 {[%clk 0:02:17]}
18. Ne5 {[%clk 0:02:20.5]} 18... Qa4 {[%clk 0:01:58.9]} 19. dxc5 {[%clk
0:02:10.8]} 19... Rc8 {[%clk 0:01:57.7]} 20. c6 {[%clk 0:02:08.9]} 20... f6
{[%clk 0:01:56.8]} 21. Nef3 {[%clk 0:02:06.9]} 21... Bc2 {[%clk 0:01:22.2]} 22.
Rc1 {[%clk 0:02:01.6]} 22... Rxc6 {[%clk 0:01:22.3]} 23. Nd4 {[%clk 0:02:00.8]}
23... Rxc3 {[%clk 0:01:22.3]} 24. Nxe6 {[%clk 0:01:56.1]} 24... Re3 {[%clk
0:00:58]} 25. Bg4 {[%clk 0:01:45.8]} 25... f5 {[%clk 0:00:52.6]} 26. Bxf5 {[%clk
0:01:19.9]} 26... Bxf5 {[%clk 0:00:51.8]} 27. Nc5 {[%clk 0:01:18.8]} 27... Qd4
{[%clk 0:00:50.2]} 28. Ndb3 {[%clk 0:01:16]} 28... Rxb3+ {[%clk 0:00:49.8]} 29.
Kh1 {[%clk 0:01:13.3]} 29... Rc3 {[%clk 0:00:48.9]} 0-1

[Event "Early-Titled-Tuesday-Blitz-April-02-2024"]
[Site "Chess.com"]
[Date "2024.04.02"]
[Round "4"]
[White "mishanick"]
[Black "Mikhail_Golubev"]
[Result "1-0"]
[WhiteElo "3040"]
[BlackElo "2620"]
[TimeControl "180+1"]
[EndTime "8:37:12 PDT"]
[Termination "mishanick won on time"]

1. d4 {[%clk 0:02:56.7]} 1... Nf6 {[%clk 0:02:59.3]} 2. c4 {[%clk 0:02:47.6]}
2... g6 {[%clk 0:02:59.1]} 3. Nc3 {[%clk 0:02:48.1]} 3... Bg7 {[%clk 0:02:59.4]}
4. e4 {[%clk 0:02:48.4]} 4... d6 {[%clk 0:02:59.7]} 5. Be2 {[%clk 0:02:49.2]}
5... O-O {[%clk 0:02:59.8]} 6. Be3 {[%clk 0:02:49.9]} 6... c5 {[%clk 0:02:59]}
7. d5 {[%clk 0:02:50]} 7... e6 {[%clk 0:02:59.5]} 8. Nf3 {[%clk 0:02:50.1]} 8...
exd5 {[%clk 0:03:00]} 9. cxd5 {[%clk 0:02:51]} 9... b5 {[%clk 0:02:58.7]} 10. e5
{[%clk 0:02:45.8]} 10... dxe5 {[%clk 0:02:59.1]} 11. Bxc5 {[%clk 0:02:45.8]}
11... Re8 {[%clk 0:02:59.3]} 12. Bxb5 {[%clk 0:02:46.3]} 12... Bd7 {[%clk
0:02:54.7]} 13. Be2 {[%clk 0:02:41.9]} 13... Bg4 {[%clk 0:02:52]} 14. O-O {[%clk
0:02:40.5]} 14... Nbd7 {[%clk 0:02:44.3]} 15. Be3 {[%clk 0:02:40]} 15... Rb8
{[%clk 0:02:38.8]} 16. b3 {[%clk 0:02:36.4]} 16... Bxf3 {[%clk 0:02:09.9]} 17.
Bxf3 {[%clk 0:02:34.2]} 17... e4 {[%clk 0:02:10.2]} 18. Be2 {[%clk 0:02:34.9]}
18... Nb6 {[%clk 0:01:44.1]} 19. d6 {[%clk 0:02:34]} 19... Re6 {[%clk
0:01:37.1]} 20. Bf4 {[%clk 0:02:08.6]} 20... Nh5 {[%clk 0:00:45.9]} 21. Bxh5
{[%clk 0:02:08.1]} 21... gxh5 {[%clk 0:00:46.1]} 22. Rc1 {[%clk 0:02:06.1]}
22... Be5 {[%clk 0:00:18.4]} 23. Bxe5 {[%clk 0:02:03.8]} 23... Rxe5 {[%clk
0:00:19.3]} 24. Qd4 {[%clk 0:02:02.2]} 24... Qg5 {[%clk 0:00:19]} 25. Nxe4
{[%clk 0:02:00.6]} 25... Qg7 {[%clk 0:00:07.5]} 26. Rc5 {[%clk 0:01:52.6]} 26...
Rxc5 {[%clk 0:00:05.8]} 27. Qxc5 {[%clk 0:01:52.3]} 27... Rc8 {[%clk 0:00:04.7]}
28. Qxc8+ {[%clk 0:01:49.9]} 28... Nxc8 {[%clk 0:00:04.2]} 29. d7 {[%clk
0:01:50.7]} 29... Qf8 {[%clk 0:00:02]} 30. Nf6+ {[%clk 0:01:48.7]} 30... Kh8
{[%clk 0:00:02.5]} 31. Ne8 {[%clk 0:01:46.8]} 31... Qxe8 {[%clk 0:00:01.1]} 32.
dxe8=Q+ {[%clk 0:01:46.8]} 1-0

[Event "Early-Titled-Tuesday-Blitz-April-02-2024"]
[Site "Chess.com"]
[Date "2024.04.02"]
[Round "4"]
[White "only_strong_moves"]
[Black "m_ezat"]
[Result "1-0"]
[WhiteElo "2720"]
[BlackElo "2555"]
[TimeControl "180+1"]
[EndTime "8:37:12 PDT"]
[Termination "only_strong_moves won by resignation"]

1. Nc3 {[%clk 0:03:00.9]} 1... d5 {[%clk 0:02:52.4]} 2. e4 {[%clk 0:03:00.2]}
2... c6 {[%clk 0:02:52.5]} 3. d4 {[%clk 0:02:59.7]} 3... dxe4 {[%clk 0:02:51.5]}
4. Nxe4 {[%clk 0:03:00.6]} 4... Bf5 {[%clk 0:02:51.3]} 5. Ng3 {[%clk 0:03:00.8]}
5... Bg6 {[%clk 0:02:51.1]} 6. h4 {[%clk 0:03:01.5]} 6... h6 {[%clk 0:02:49.9]}
7. Nf3 {[%clk 0:03:02.2]} 7... Nd7 {[%clk 0:02:48.8]} 8. h5 {[%clk 0:03:02.3]}
8... Bh7 {[%clk 0:02:48.5]} 9. Bd3 {[%clk 0:03:03]} 9... Bxd3 {[%clk 0:02:47.9]}
10. Qxd3 {[%clk 0:03:03.9]} 10... e6 {[%clk 0:02:48]} 11. Bd2 {[%clk 0:03:03.1]}
11... Ngf6 {[%clk 0:02:45.8]} 12. O-O-O {[%clk 0:03:03.1]} 12... Be7 {[%clk
0:02:40.3]} 13. Kb1 {[%clk 0:03:02.7]} 13... c5 {[%clk 0:02:36.3]} 14. Ne4
{[%clk 0:03:00.1]} 14... Nxe4 {[%clk 0:02:35.7]} 15. Qxe4 {[%clk 0:03:01]} 15...
Nf6 {[%clk 0:02:34.6]} 16. Qe2 {[%clk 0:02:52.7]} 16... cxd4 {[%clk 0:02:22.6]}
17. Bc3 {[%clk 0:02:52.2]} 17... O-O {[%clk 0:02:18.3]} 18. Bxd4 {[%clk
0:02:50.9]} 18... Qc7 {[%clk 0:02:15.4]} 19. g4 {[%clk 0:02:48.9]} 19... Nd5
{[%clk 0:02:09.6]} 20. g5 {[%clk 0:02:43.5]} 20... Bxg5 {[%clk 0:01:57.2]} 21.
Nxg5 {[%clk 0:02:41.7]} 21... hxg5 {[%clk 0:01:58.1]} 22. h6 {[%clk 0:02:42.5]}
22... f6 {[%clk 0:01:57.5]} 23. hxg7 {[%clk 0:02:36.4]} 23... Qxg7 {[%clk
0:01:53.6]} 24. Qxe6+ {[%clk 0:02:35.8]} 24... Qf7 {[%clk 0:01:53.6]} 25. Qh3
{[%clk 0:02:31.4]} 25... Qg7 {[%clk 0:01:51.5]} 26. Rdg1 {[%clk 0:02:25.1]}
26... Nf4 {[%clk 0:01:49.6]} 27. Qb3+ {[%clk 0:02:17.7]} 27... Rf7 {[%clk
0:01:44.7]} 28. Be3 {[%clk 0:02:09.4]} 28... Ng6 {[%clk 0:01:40.1]} 29. Rd1
{[%clk 0:02:08]} 29... Ne5 {[%clk 0:01:38.1]} 30. f4 {[%clk 0:02:02.1]} 30...
Ng4 {[%clk 0:01:33.9]} 31. Bd4 {[%clk 0:01:56.2]} 31... gxf4 {[%clk 0:01:28.7]}
32. Rdg1 {[%clk 0:01:55.9]} 32... Re8 {[%clk 0:00:40.3]} 33. Qf3 {[%clk
0:01:50.1]} 33... Rfe7 {[%clk 0:00:39.4]} 34. a3 {[%clk 0:01:35.6]} 1-0

[Event "Early-Titled-Tuesday-Blitz-April-02-2024"]
[Site "Chess.com"]
[Date "2024.04.02"]
[Round "4"]
[White "dealshark"]
[Black "zurzan"]
[Result "1-0"]
[WhiteElo "2314"]
[BlackElo "2065"]
[TimeControl "180+1"]
[EndTime "8:37:12 PDT"]
[Termination "dealshark won by checkmate"]

1. Nf3 {[%clk 0:03:00.9]} 1... g6 {[%clk 0:02:59.4]} 2. e4 {[%clk 0:03:00.4]}
2... c5 {[%clk 0:02:59.1]} 3. c3 {[%clk 0:02:59.8]} 3... d5 {[%clk 0:02:58.2]}
4. exd5 {[%clk 0:02:58.5]} 4... Qxd5 {[%clk 0:02:58.7]} 5. d4 {[%clk 0:02:58.7]}
5... Bg7 {[%clk 0:02:56.6]} 6. Bb5+ {[%clk 0:02:55.7]} 6... Nc6 {[%clk
0:02:49.6]} 7. O-O {[%clk 0:02:55.1]} 7... Nf6 {[%clk 0:02:43.3]} 8. dxc5 {[%clk
0:02:43.2]} 8... Qxc5 {[%clk 0:02:36.2]} 9. Ba4 {[%clk 0:02:42.9]} 9... Bg4
{[%clk 0:02:31.3]} 10. Nbd2 {[%clk 0:02:41.1]} 10... Rd8 {[%clk 0:02:29.7]} 11.
Qe2 {[%clk 0:02:39.9]} 11... O-O {[%clk 0:02:21.1]} 12. h3 {[%clk 0:02:40.1]}
12... Bf5 {[%clk 0:02:18.5]} 13. Bb3 {[%clk 0:02:39.1]} 13... Bd3 {[%clk
0:02:17.3]} 14. Qe1 {[%clk 0:02:36]} 14... Bxf1 {[%clk 0:02:16.7]} 15. Qxf1
{[%clk 0:02:36.9]} 15... e5 {[%clk 0:02:11.3]} 16. Nc4 {[%clk 0:02:30.3]} 16...
e4 {[%clk 0:01:53.2]} 17. Be3 {[%clk 0:02:30.3]} 17... Qh5 {[%clk 0:01:46]} 18.
Nfd2 {[%clk 0:02:29.2]} 18... b5 {[%clk 0:01:32.1]} 19. Na3 {[%clk 0:02:28.9]}
19... a6 {[%clk 0:01:29.7]} 20. Nc2 {[%clk 0:02:29]} 20... Ne5 {[%clk
0:01:27.8]} 21. Nd4 {[%clk 0:02:24.4]} 21... Bh6 {[%clk 0:00:55.9]} 22. Bxh6
{[%clk 0:02:17.6]} 22... Qxh6 {[%clk 0:00:55.8]} 23. Qe2 {[%clk 0:02:14.8]}
23... Qf4 {[%clk 0:00:45.7]} 24. Re1 {[%clk 0:02:10.4]} 24... Nd3 {[%clk
0:00:44.6]} 25. Rf1 {[%clk 0:02:04.8]} 25... Nxb2 {[%clk 0:00:42.6]} 26. Nxe4
{[%clk 0:01:54.1]} 26... Qxe4 {[%clk 0:00:40]} 27. Qxb2 {[%clk 0:01:54.3]} 27...
Nd5 {[%clk 0:00:24.8]} 28. Nc6 {[%clk 0:01:35.7]} 28... Rc8 {[%clk 0:00:22.1]}
29. Bxd5 {[%clk 0:01:34.8]} 29... Qd3 {[%clk 0:00:20.4]} 30. Ne7+ {[%clk
0:01:33.9]} 30... Kh8 {[%clk 0:00:20.5]} 31. c4+ {[%clk 0:01:34.3]} 31... f6
{[%clk 0:00:19.1]} 32. Nxc8 {[%clk 0:01:28.5]} 32... Rxc8 {[%clk 0:00:19.2]} 33.
Qxf6# {[%clk 0:01:28.4]} 1-0

[Event "Early-Titled-Tuesday-Blitz-April-02-2024"]
[Site "Chess.com"]
[Date "2024.04.02"]
[Round "4"]
[White "lularobs"]
[Black "Cheer_Down"]
[Result "0-1"]
[WhiteElo "1567"]
[BlackElo "2434"]
[TimeControl "180+1"]
[EndTime "8:37:14 PDT"]
[Termination "Cheer_Down won on time"]

1. d4 {[%clk 0:03:00.9]} 1... Nf6 {[%clk 0:02:58.1]} 2. Bf4 {[%clk 0:02:57.8]}
2... d5 {[%clk 0:02:57.5]} 3. e3 {[%clk 0:02:49.9]} 3... e6 {[%clk 0:02:55.5]}
4. Nf3 {[%clk 0:02:48]} 4... c5 {[%clk 0:02:52.9]} 5. c4 {[%clk 0:02:40.2]} 5...
Nc6 {[%clk 0:02:50.9]} 6. dxc5 {[%clk 0:02:34]} 6... Bxc5 {[%clk 0:02:49.3]} 7.
Nc3 {[%clk 0:02:27.2]} 7... O-O {[%clk 0:02:47.8]} 8. Be2 {[%clk 0:02:21.6]}
8... d4 {[%clk 0:02:29.4]} 9. exd4 {[%clk 0:02:17.4]} 9... Nxd4 {[%clk
0:02:29.3]} 10. Nxd4 {[%clk 0:02:15]} 10... Qxd4 {[%clk 0:02:29]} 11. Qxd4
{[%clk 0:02:08]} 11... Bxd4 {[%clk 0:02:29]} 12. Rc1 {[%clk 0:01:47.2]} 12... e5
{[%clk 0:02:25.8]} 13. Bg5 {[%clk 0:01:35.9]} 13... Be6 {[%clk 0:02:25.1]} 14.
O-O {[%clk 0:01:35.2]} 14... Bxc3 {[%clk 0:02:18.1]} 15. Rxc3 {[%clk 0:01:33.7]}
15... Ne4 {[%clk 0:02:15.9]} 16. Rg3 {[%clk 0:01:01.8]} 16... Nxg3 {[%clk
0:02:15.4]} 17. hxg3 {[%clk 0:01:02.7]} 17... Rac8 {[%clk 0:02:12.6]} 18. b3
{[%clk 0:01:01.9]} 18... b5 {[%clk 0:02:05.4]} 19. cxb5 {[%clk 0:00:44.7]} 19...
Rc2 {[%clk 0:02:04.9]} 20. Bf3 {[%clk 0:00:20.5]} 20... Rxa2 {[%clk 0:02:04.7]}
21. Rb1 {[%clk 0:00:18.1]} 21... Rc8 {[%clk 0:01:54.2]} 22. Bc6 {[%clk
0:00:17.9]} 22... a6 {[%clk 0:01:50]} 23. b4 {[%clk 0:00:12.8]} 23... axb5
{[%clk 0:01:48.3]} 24. Bxb5 {[%clk 0:00:13.7]} 24... Rcc2 {[%clk 0:01:46.3]} 25.
Be3 {[%clk 0:00:13]} 25... Rcb2 {[%clk 0:01:45]} 26. Rxb2 {[%clk 0:00:10.3]}
26... Rxb2 {[%clk 0:01:45.1]} 27. Bc5 {[%clk 0:00:09.6]} 27... f6 {[%clk
0:01:44.1]} 28. Bc6 {[%clk 0:00:08.8]} 28... Bc4 {[%clk 0:01:42.7]} 29. Kh2
{[%clk 0:00:07]} 29... Kf7 {[%clk 0:01:42.3]} 30. b5 {[%clk 0:00:02.6]} 30...
Bxb5 {[%clk 0:01:39.9]} 0-1